bitfinex-derivatives/quotes_BTCF0:USTF0_20241103
["timestamp","ask_amount","ask_price","bid_price","bid_amount"]
[1730667947426,0.002,69116.0,69109.0,0.48590015]
[1730667947614,0.002,69116.0,69115.0,0.19023115]
[1730667948009,0.003,69117.0,69116.0,0.06513]
[1730667948615,0.002,69117.0,69116.0,0.06513]
[1730667949618,0.3608,69123.0,69115.0,0.12510015]
[1730667950125,0.3608,69123.0,69120.0,0.065126]
[1730667951025,0.3618,69123.0,69111.0,0.04226852]
[1730667951220,0.3618,69123.0,69116.0,0.06513]
[1730667951221,0.065125,69122.0,69116.0,0.06513]
[1730667951421,0.065125,69122.0,69119.0,0.04226852]
[1730667951725,0.3668,69123.0,69120.0,0.001]
[1730667953224,0.3668,69123.0,69121.0,0.09526905]
[1730667953524,0.3668,69123.0,69122.0,0.09526905]
[1730667953727,0.3608,69123.0,69122.0,0.09526905]
[1730667954026,0.3638,69123.0,69122.0,0.09526905]
[1730667954420,0.3708,69123.0,69122.0,0.17980609]
[1730667956125,0.3708,69123.0,69122.0,0.18180609]
[1730667956126,0.3728,69123.0,69122.0,0.18180609]
[1730667956329,0.3728,69123.0,69122.0,0.09726905]
[1730667956520,0.3638,69123.0,69122.0,0.09626905]
[1730667956717,0.3738,69123.0,69122.0,0.09726905]
[1730667960220,0.3738,69123.0,69122.0,0.002]
[1730667963124,0.3738,69123.0,69122.0,0.05907814]
[1730667963530,0.3738,69123.0,69122.0,0.002]
[1730667964336,0.3738,69123.0,69122.0,0.62622515]
[1730667964337,0.013,69123.0,69122.0,0.62622515]
[1730667964638,0.12727082,69150.0,69143.0,0.065105]
[1730667964639,0.3608,69144.0,69143.0,0.065105]
[1730667965032,0.3608,69144.0,69143.0,0.10785251]
[1730667965236,0.3608,69144.0,69143.0,0.065105]
[1730667965734,0.3638,69144.0,69143.0,0.066105]
[1730667965931,0.3648,69144.0,69143.0,0.10980007]
[1730667966646,0.003,69144.0,69143.0,0.92608515]
[1730667966830,0.3608,69165.0,69143.0,0.95463766]
[1730667967030,0.3608,69165.0,69156.0,0.065093]
[1730667967338,0.3608,69165.0,69164.0,0.065085]
[1730667967842,0.425885,69165.0,69160.0,0.065089]
[1730667968024,0.425885,69165.0,69161.0,0.065088]
[1730667968230,0.3608,69165.0,69164.0,0.065085]
[1730667969233,0.02494157,69172.0,69171.0,0.065078]
[1730667969426,0.10492,69174.0,69171.0,0.065078]
[1730667969943,0.48590015,69173.0,69171.0,0.065078]
[1730667970140,0.3608,69173.0,69165.0,0.12510015]
[1730667970432,0.3608,69180.0,69179.0,0.065071]
[1730667972642,0.30680604,69180.0,69179.0,0.065071]
[1730667973235,0.30680604,69180.0,69179.0,0.068071]
[1730667974146,0.30680604,69180.0,69179.0,0.069071]
[1730667974927,0.30680604,69180.0,69179.0,0.066071]
[1730667975128,0.30680604,69180.0,69179.0,0.068071]
[1730667975731,0.30680604,69180.0,69179.0,0.066071]
[1730667976634,0.30680604,69180.0,69179.0,0.065071]
[1730667976837,0.394,69190.0,69189.0,0.065062]
[1730667979539,0.394,69190.0,69184.0,0.065065]
[1730667979740,0.12510015,69186.0,69167.0,0.3608]
[1730667979938,0.7548,69190.0,69178.0,0.065072]
[1730667979939,0.48590015,69179.0,69178.0,0.065072]
[1730667980943,0.3608,69179.0,69178.0,0.065072]
[1730667981340,0.394,69190.0,69178.0,0.19317215]
[1730667981662,0.394,69190.0,69189.0,0.065062]
[1730667982340,0.3608,69196.0,69194.0,0.065057]
[1730667982640,0.3608,69196.0,69195.0,0.065056]
[1730667983647,0.10488,69202.0,69198.0,0.065053]
[1730667983838,0.03696786,69200.0,69198.0,0.03227378]
[1730667984033,0.10488,69202.0,69198.0,0.03227378]
[1730667984241,0.12996096,69202.0,69198.0,0.03227378]
[1730667985838,0.02508096,69202.0,69198.0,0.03227378]
[1730667986039,0.12996096,69202.0,69199.0,0.065052]
[1730667986440,0.3608,69204.0,69195.0,0.12510015]
[1730667986640,0.3608,69204.0,69203.0,0.065048]
[1730667986944,0.3608,69204.0,69203.0,0.03241197]
[1730667987355,0.0331,69214.0,69211.0,0.065041]
[1730667987537,0.39767634,69212.0,69211.0,0.065041]
[1730667988254,0.39767634,69212.0,69207.0,0.065044]
[1730667988439,0.03687634,69211.0,69207.0,0.065044]
[1730667988639,0.03687634,69210.0,69207.0,0.065044]
[1730667988853,0.03687634,69209.0,69207.0,0.065044]
[1730667989055,0.3608,69212.0,69211.0,0.001]
[1730667989247,0.39768746,69212.0,69211.0,0.001]
[1730667989450,0.4405534,69212.0,69211.0,0.001]
[1730667989651,0.39768746,69212.0,69211.0,0.001]
[1730667989845,0.39768746,69212.0,69207.0,0.066044]
[1730667990044,0.3608,69212.0,69211.0,0.001]
[1730667991046,0.3608,69212.0,69207.0,0.067044]
[1730667991244,0.3608,69212.0,69207.0,0.066044]
[1730667991441,0.3608,69212.0,69211.0,0.001]
[1730667992242,0.3608,69212.0,69207.0,0.067044]
[1730667992655,0.3608,69212.0,69211.0,0.001]
[1730667993148,0.3608,69212.0,69211.0,0.002]
[1730667993453,0.42584,69212.0,69211.0,0.001]
[1730667993850,0.065044,69208.0,69207.0,0.001]
[1730667994046,0.12510015,69208.0,69187.0,0.12510015]
[1730667994248,0.3608,69199.0,69187.0,0.12510015]
[1730667994655,0.0321,69198.0,69187.0,0.12510015]
[1730667994856,0.0321,69198.0,69194.0,0.065056]
[1730667995247,0.12510015,69197.0,69190.0,0.06506]
[1730667995448,0.3608,69192.0,69190.0,0.06506]
[1730667995950,0.3608,69192.0,69187.0,0.001]
[1730667996354,0.425859,69192.0,69187.0,0.001]
[1730667996555,0.425859,69192.0,69190.0,0.001]
[1730667997061,0.0321,69191.0,69185.0,0.427145]
[1730667997249,0.3608,69192.0,69191.0,0.06506]
[1730667997558,0.0321,69198.0,69197.0,0.065054]
[1730667998456,0.3608,69199.0,69198.0,0.065053]
[1730668001772,0.031,69206.0,69205.0,0.065046]
[1730668001955,0.0309,69213.0,69204.0,0.12510015]
[1730668002761,0.0309,69213.0,69210.0,0.065041]
[1730668003858,0.0309,69213.0,69205.0,0.066046]
[1730668004177,0.0309,69213.0,69206.0,0.065045]
[1730668004178,0.3608,69208.0,69206.0,0.065045]
[1730668004766,0.3608,69208.0,69207.0,0.065045]
[1730668005677,0.34282525,69208.0,69207.0,0.065045]
[1730668005864,0.03639966,69208.0,69207.0,0.065045]
[1730668006263,0.03639966,69208.0,69207.0,0.066045]
[1730668006572,0.03639966,69208.0,69207.0,0.001]
[1730668006868,0.03639966,69208.0,69207.0,0.002]
[1730668008654,0.07829121,69208.0,69207.0,0.002]
[1730668009264,0.10402477,69208.0,69207.0,0.002]
[1730668009459,0.16906877,69208.0,69207.0,0.002]
[1730668009865,0.72764892,69208.0,69207.0,0.002]
[1730668011273,0.72764892,69208.0,69207.0,0.0034047]
[1730668011863,0.72764892,69208.0,69194.0,0.065057]
[1730668011864,0.065049,69203.0,69194.0,0.065057]
[1730668012066,0.3608,69200.0,69194.0,0.065057]
[1730668012262,0.10829121,69199.0,69194.0,0.065057]
[1730668012458,0.07829121,69198.0,69194.0,0.065057]
[1730668012662,0.0781121,69197.0,69194.0,0.065057]
[1730668012963,0.0781121,69196.0,69194.0,0.002]
[1730668013268,0.07803334,69195.0,69194.0,0.002]
[1730668013467,0.11133334,69195.0,69194.0,0.001]
[1730668014371,0.21485334,69195.0,69194.0,0.001]
[1730668014566,0.17321966,69195.0,69194.0,0.001]
[1730668014872,0.27977653,69195.0,69194.0,0.001]
[1730668015467,0.83843668,69195.0,69194.0,0.002]
[1730668015972,0.06506,69191.0,69181.0,0.425868]
[1730668016168,0.03639966,69190.0,69181.0,0.3608]
[1730668016373,0.03639966,69189.0,69181.0,0.3608]
[1730668016577,0.03639966,69188.0,69182.0,0.065068]
[1730668016768,0.03639966,69187.0,69182.0,0.065068]
[1730668016969,0.03639966,69187.0,69181.0,0.3608]
[1730668016970,0.03639966,69186.0,69181.0,0.3608]
[1730668017276,0.03639966,69185.0,69181.0,0.3608]
[1730668017582,0.03558313,69184.0,69181.0,0.425869]
[1730668017768,0.10356,69188.0,69181.0,0.425869]
[1730668017769,0.03558313,69183.0,69181.0,0.425869]
[1730668017971,0.10356,69188.0,69181.0,0.425869]
[1730668018274,0.10356,69188.0,69181.0,0.427869]
[1730668018275,0.035605,69187.0,69181.0,0.427869]
[1730668018465,0.035605,69186.0,69181.0,0.427869]
[1730668018777,0.036605,69185.0,69181.0,0.427869]
[1730668018977,0.001,69183.0,69181.0,0.425869]
[1730668019564,0.10356,69188.0,69181.0,0.425869]
[1730668019565,0.065067,69184.0,69181.0,0.3608]
[1730668019764,0.1937977,69183.0,69181.0,0.3608]
[1730668019974,0.15820015,69183.0,69174.0,0.065075]
[1730668020181,0.06767183,69182.0,69174.0,0.065075]
[1730668020367,0.0322,69182.0,69174.0,0.065075]
[1730668020570,0.097269,69182.0,69175.0,0.04220864]
[1730668020974,0.06507,69180.0,69174.0,0.04220864]
[1730668021279,0.0301,69179.0,69174.0,0.04220864]
[1730668021479,0.0301,69179.0,69172.0,0.46808564]
[1730668021871,0.0301,69179.0,69175.0,0.004]
[1730668022284,0.3608,69177.0,69175.0,0.004]
[1730668022782,0.065075,69175.0,69174.0,0.004]
[1730668022983,0.065075,69175.0,69172.0,0.007]
[1730668023476,0.10356,69176.0,69172.0,0.007]
[1730668023680,0.065076,69174.0,69172.0,0.007]
[1730668024082,0.065077,69173.0,69172.0,0.007]
[1730668024474,0.065077,69173.0,69165.0,0.065084]
[1730668024681,0.3608,69167.0,69156.0,0.04220864]
[1730668024981,0.0313,69166.0,69161.0,0.065088]
[1730668025579,0.0313,69166.0,69154.0,0.02548664]
[1730668025781,0.0313,69166.0,69163.0,0.065086]
[1730668026081,0.0313,69166.0,69165.0,0.065084]
[1730668026276,0.0313,69166.0,69160.0,0.12510015]
[1730668026277,0.3608,69167.0,69166.0,0.065083]
[1730668026479,0.008,69173.0,69166.0,0.12510015]
[1730668026689,0.008,69173.0,69172.0,0.19017715]
[1730668026984,0.008,69173.0,69172.0,0.065077]
[1730668027375,0.3608,69175.0,69174.0,0.065076]
[1730668029079,0.3638,69175.0,69174.0,0.065076]
[1730668029276,0.3648,69175.0,69174.0,0.065076]
[1730668029981,0.3648,69175.0,69170.0,0.04220864]
[1730668030285,0.12510015,69172.0,69164.0,0.065085]
[1730668030585,0.3608,69168.0,69163.0,0.065085]
[1730668030794,0.46224,69168.0,69163.0,0.065085]
[1730668031975,0.46224,69168.0,69163.0,0.068085]
[1730668032590,0.46724,69168.0,69163.0,0.065085]
[1730668033290,0.005,69168.0,69162.0,0.12510015]
[1730668033488,0.10644,69168.0,69167.0,0.065082]
[1730668034288,0.10644,69168.0,69159.0,0.40300864]
[1730668034591,0.006,69168.0,69161.0,0.12510015]
[1730668034790,0.10144,69167.0,69166.0,0.065083]
[1730668034992,0.005,69168.0,69166.0,0.065083]
[1730668034993,0.006,69168.0,69167.0,0.065082]
[1730668035286,0.001,69168.0,69167.0,0.065082]
[1730668035486,0.02573292,69173.0,69172.0,0.065077]
[1730668035691,0.0738315,69179.0,69176.0,0.065073]
[1730668035893,0.0738315,69179.0,69168.0,0.0615]
[1730668036089,0.0738315,69179.0,69167.0,0.0321]
[1730668036090,0.425875,69175.0,69167.0,0.065081]
[1730668036285,0.065076,69174.0,69167.0,0.069081]
[1730668036487,0.3608,69168.0,69167.0,0.069081]
[1730668036690,0.3608,69168.0,69167.0,0.004]
[1730668037490,0.3608,69168.0,69167.0,0.007]
[1730668037890,0.3608,69168.0,69167.0,0.001]
[1730668037891,0.3618,69168.0,69167.0,0.001]
[1730668038300,0.55198115,69168.0,69167.0,0.001]
[1730668038792,0.65342115,69168.0,69167.0,0.001]
[1730668038982,0.66142115,69168.0,69167.0,0.001]
[1730668039184,0.66242115,69168.0,69167.0,0.002]
[1730668039985,0.47224,69168.0,69167.0,0.002]
[1730668040391,0.537321,69168.0,69167.0,0.002]
[1730668040695,0.66242115,69168.0,69167.0,0.002]
[1730668045798,1.09614115,69168.0,69167.0,0.002]
[1730668046003,0.06509,69160.0,69156.0,0.04244925]
[1730668046201,0.3608,69157.0,69154.0,0.04244925]
[1730668046497,0.46224,69157.0,69153.0,0.04244925]
[1730668047003,0.46224,69157.0,69151.0,0.04244925]
[1730668047004,0.065095,69153.0,69151.0,0.04244925]
[1730668047198,0.065095,69153.0,69146.0,0.00102278]
[1730668047199,0.19019515,69153.0,69150.0,0.04244925]
[1730668047387,0.3608,69151.0,69149.0,0.04244925]
[1730668047595,0.3608,69151.0,69148.0,0.04244925]
[1730668047791,0.065098,69150.0,69149.0,0.04244925]
[1730668048100,0.065098,69150.0,69146.0,0.00102278]
[1730668048101,0.065101,69147.0,69146.0,0.00102278]
[1730668048398,0.425901,69147.0,69146.0,0.00102278]
[1730668048599,0.859781,69147.0,69146.0,0.00102278]
[1730668050492,0.860781,69147.0,69146.0,0.01202278]
[1730668051000,0.426901,69147.0,69146.0,0.01202278]
[1730668051195,0.3618,69147.0,69146.0,0.01202278]
[1730668051395,0.3618,69147.0,69146.0,0.20222493]
[1730668051797,0.3618,69147.0,69146.0,0.24482425]
[1730668051998,0.3618,69147.0,69146.0,0.25482425]
[1730668052202,0.001,69147.0,69146.0,0.21222493]
[1730668052409,0.001,69147.0,69146.0,0.26896241]
[1730668052593,0.10148,69155.0,69153.0,0.065095]
[1730668053502,0.10148,69155.0,69154.0,0.065094]
[1730668053898,0.10148,69156.0,69154.0,0.065094]
[1730668054098,0.10148,69156.0,69155.0,0.065093]
[1730668054608,0.3608,69158.0,69156.0,0.065093]
[1730668055496,0.3608,69158.0,69157.0,0.065092]
[1730668056296,0.46228,69158.0,69154.0,0.005]
[1730668056805,0.12510015,69157.0,69154.0,0.003]
[1730668056995,0.12510015,69157.0,69153.0,0.00102268]
[1730668057195,0.12510015,69157.0,69155.0,0.002]
[1730668057402,0.3608,69156.0,69155.0,0.002]
[1730668057603,0.3608,69156.0,69154.0,0.002]
[1730668057809,0.3608,69156.0,69146.0,0.04255139]
[1730668057810,0.0651,69149.0,69146.0,0.04255139]
[1730668058017,0.48590015,69147.0,69138.0,0.065109]
[1730668058705,0.48590015,69147.0,69132.0,0.3608]
[1730668059698,0.48590015,69147.0,69139.0,0.065108]
[1730668060507,0.48690015,69147.0,69139.0,0.065108]
[1730668061210,0.48690015,69147.0,69139.0,0.079108]
[1730668061409,0.48690015,69147.0,69139.0,0.093108]
[1730668062110,0.51203169,69147.0,69141.0,0.065107]
[1730668063204,0.10452,69146.0,69143.0,0.065105]
[1730668063603,0.10452,69146.0,69141.0,0.028]
[1730668063915,0.12510015,69142.0,69141.0,0.028]
[1730668064302,0.12510015,69142.0,69141.0,0.014]
[1730668064607,0.12510015,69142.0,69136.0,0.065111]
[1730668064805,0.3608,69139.0,69136.0,0.065111]
[1730668066003,0.3608,69139.0,69138.0,0.05673519]
[1730668066309,0.3608,69139.0,69136.0,0.065111]
[1730668066505,0.30801435,69139.0,69136.0,0.065111]
[1730668066705,0.30801435,69139.0,69136.0,0.079111]
[1730668066905,0.30801435,69139.0,69136.0,0.014]
[1730668067210,0.10452,69141.0,69138.0,0.065109]
[1730668067411,0.10452,69141.0,69140.0,0.05678672]
[1730668067611,0.10452,69141.0,69139.0,0.05678672]
[1730668068007,0.10452,69141.0,69140.0,0.05678672]
[1730668068606,0.10452,69141.0,69140.0,0.07078672]
[1730668068813,0.10552,69141.0,69140.0,0.07078672]
[1730668069418,0.10552,69141.0,69140.0,0.014]
[1730668069715,0.10552,69141.0,69140.0,0.07081148]
[1730668070115,0.10552,69141.0,69140.0,0.079108]
[1730668070611,0.001,69141.0,69140.0,0.028]
[1730668070814,0.001,69141.0,69140.0,0.093108]
[1730668071205,0.001,69141.0,69140.0,0.16385675]
[1730668071405,0.001,69141.0,69140.0,0.25843153]
[1730668071602,0.001,69141.0,69140.0,0.16385675]
[1730668072112,0.001,69141.0,69140.0,0.093108]
[1730668072307,0.001,69141.0,69140.0,0.2585143]
[1730668073014,0.001,69141.0,69140.0,0.093108]
[1730668076417,0.001,69141.0,69140.0,0.13574011]
[1730668076916,0.001,69141.0,69140.0,0.093108]
[1730668077119,0.001,69141.0,69140.0,0.13574011]
[1730668077507,0.001,69141.0,69140.0,0.093108]
[1730668077709,0.001,69141.0,69140.0,0.13577223]
[1730668078113,0.001,69141.0,69140.0,0.093108]
[1730668078918,0.12610015,69141.0,69140.0,0.093108]
[1730668080711,0.15752449,69141.0,69140.0,0.093108]
[1730668083016,0.15752449,69141.0,69140.0,0.028]
[1730668084219,0.001,69141.0,69140.0,0.093108]
[1730668085413,0.001,69141.0,69140.0,0.028]
[1730668086422,0.12510015,69137.0,69136.0,0.05693513]
[1730668086622,0.12510015,69137.0,69134.0,0.05693513]
[1730668086929,0.48590015,69135.0,69132.0,0.05693513]
[1730668087118,0.3608,69135.0,69133.0,0.065114]
[1730668087313,0.3608,69135.0,69134.0,0.065113]
[1730668087521,0.3608,69135.0,69134.0,0.12204813]
[1730668088031,0.3608,69135.0,69134.0,0.065113]
[1730668088214,0.03114311,69135.0,69134.0,0.065113]
[1730668088418,0.004,69135.0,69134.0,0.065113]
[1730668089521,0.008,69135.0,69134.0,0.065113]
[1730668089824,0.3688,69135.0,69126.0,0.05694396]
[1730668090030,0.3688,69135.0,69132.0,0.065114]
[1730668090220,0.3688,69135.0,69133.0,0.065114]
[1730668090409,0.3648,69135.0,69133.0,0.065114]
[1730668090613,0.3648,69135.0,69134.0,0.001]
[1730668090614,0.3708,69135.0,69134.0,0.001]
[1730668090809,0.49590015,69135.0,69134.0,0.001]
[1730668091024,0.48990015,69135.0,69128.0,0.065119]
[1730668091220,0.49390015,69135.0,69128.0,0.065119]
[1730668091528,0.12510015,69129.0,69125.0,0.065121]
[1730668091723,0.12510015,69129.0,69126.0,0.003]
[1730668091924,0.12510015,69129.0,69126.0,0.06812]
[1730668092323,0.15624831,69129.0,69126.0,0.003]
[1730668092528,0.0305,69128.0,69123.0,0.362]
[1730668092828,0.0305,69128.0,69124.0,0.065122]
[1730668093418,0.15624831,69129.0,69126.0,0.003]
[1730668093419,0.13664488,69129.0,69126.0,0.003]
[1730668093931,0.13664488,69129.0,69126.0,0.005]
[1730668095029,0.001,69128.0,69127.0,0.065119]
[1730668095817,0.064035,69131.0,69127.0,0.065119]
[1730668096318,0.064035,69131.0,69128.0,0.05694396]
[1730668097622,0.004,69129.0,69128.0,0.05694396]
[1730668098230,0.064035,69131.0,69128.0,0.05794396]
[1730668098231,0.070035,69131.0,69128.0,0.05794396]
[1730668098421,0.074035,69131.0,69128.0,0.001]
[1730668098822,0.074035,69131.0,69128.0,0.05794396]
[1730668099523,0.19021815,69129.0,69128.0,0.001]
[1730668099724,0.19421815,69129.0,69128.0,0.001]
[1730668099936,0.20021815,69129.0,69128.0,0.001]
[1730668100226,0.01,69129.0,69128.0,0.001]
[1730668100431,0.10776,69129.0,69127.0,0.06512]
[1730668100631,0.10776,69129.0,69128.0,0.001]
[1730668100932,0.10776,69129.0,69120.0,0.05694396]
[1730668100933,0.59366015,69129.0,69120.0,0.05694396]
[1730668101136,0.48590015,69121.0,69118.0,0.05694396]
[1730668101323,0.48590015,69121.0,69116.0,0.05694396]
[1730668101324,0.0327,69120.0,69116.0,0.05694396]
[1730668101524,0.0327,69120.0,69115.0,0.12207396]
[1730668102128,0.0327,69120.0,69116.0,0.06513]
[1730668102829,0.0327,69120.0,69117.0,0.065129]
[1730668103138,0.0347,69120.0,69118.0,0.065128]
[1730668103325,0.06529258,69120.0,69118.0,0.065128]
[1730668103935,0.0397,69120.0,69119.0,0.065127]
[1730668104136,0.007,69120.0,69119.0,0.425927]
[1730668104436,0.002,69120.0,69119.0,0.065127]
[1730668104626,0.008,69120.0,69119.0,0.065127]
[1730668105026,0.006,69120.0,69119.0,0.065127]
[1730668105223,0.009,69120.0,69119.0,0.065127]
[1730668105825,0.006,69120.0,69119.0,0.065127]
[1730668106028,0.004,69120.0,69119.0,0.065127]
[1730668106225,0.011,69120.0,69119.0,0.066127]
[1730668106633,0.004,69120.0,69119.0,0.065127]
[1730668106840,0.11276,69120.0,69119.0,0.065127]
[1730668108942,0.11276,69120.0,69116.0,0.06513]
[1730668109755,0.48590015,69117.0,69112.0,0.05694396]
[1730668109952,0.48590015,69117.0,69112.0,0.065134]
[1730668110256,0.3608,69115.0,69112.0,0.05694396]
[1730668110454,0.3608,69115.0,69114.0,0.065132]
[1730668111249,0.12510015,69117.0,69111.0,0.05694396]
[1730668111560,0.12510015,69117.0,69111.0,0.05688069]
[1730668111561,0.12510015,69116.0,69111.0,0.05688069]
[1730668111753,0.065136,69110.0,69109.0,0.05688069]
[1730668111949,0.12510015,69110.0,69108.0,0.0590506]
[1730668112162,0.200297,69109.0,69108.0,0.00216991]
[1730668113159,0.634417,69109.0,69108.0,0.00216991]
[1730668113362,0.634417,69109.0,69108.0,0.00616991]
[1730668114357,0.634417,69109.0,69108.0,0.004]
[1730668114554,0.634417,69109.0,69085.0,0.07074875]
[1730668114555,0.065139,69107.0,69085.0,0.07074875]
[1730668114853,0.43412,69108.0,69079.0,0.3608]
[1730668114854,0.19025915,69086.0,69079.0,0.3608]
[1730668115054,0.12510015,69080.0,69079.0,0.3608]
[1730668115250,0.12510015,69085.0,69084.0,0.06516]
[1730668115455,0.3608,69087.0,69079.0,0.3608]
[1730668115456,0.10376,69086.0,69079.0,0.3608]
[1730668115865,0.10376,69086.0,69084.0,0.06516]
[1730668116162,0.10376,69086.0,69079.0,0.3608]
[1730668116350,0.10376,69086.0,69085.0,0.065159]
[1730668116750,0.22886015,69086.0,69081.0,0.065163]
[1730668117349,0.001,69085.0,69084.0,0.003]
[1730668118759,0.23086015,69086.0,69081.0,0.005]
[1730668119464,0.26163799,69086.0,69081.0,0.005]
[1730668119862,0.065162,69083.0,69081.0,0.005]
[1730668120063,0.065162,69082.0,69081.0,0.005]
[1730668120370,0.06517,69075.0,69069.0,0.07074875]
[1730668120573,0.3608,69070.0,69069.0,0.07074875]
[1730668121269,0.10348,69070.0,69069.0,0.13592375]
[1730668121454,0.22858015,69070.0,69069.0,0.07074875]
[1730668121654,0.22858015,69070.0,69069.0,0.004]
[1730668121655,0.58938015,69070.0,69069.0,0.004]
[1730668121959,0.10352,69070.0,69069.0,0.069175]
[1730668122265,0.10452,69070.0,69069.0,0.072175]
[1730668122562,0.12610015,69070.0,69069.0,0.072175]
[1730668122863,0.22962015,69070.0,69069.0,0.072175]
[1730668123064,0.59042015,69070.0,69069.0,0.068175]
[1730668123269,0.23362015,69070.0,69069.0,0.068175]
[1730668124170,0.23462015,69070.0,69069.0,0.065175]
[1730668126069,0.23462015,69070.0,69064.0,0.065178]
[1730668126271,0.59542015,69070.0,69063.0,0.3608]
[1730668126474,0.59542015,69070.0,69066.0,0.065177]
[1730668126770,0.59542015,69070.0,69063.0,0.3608]
[1730668126771,0.54541571,69070.0,69067.0,0.065176]
[1730668127063,0.54541571,69070.0,69069.0,0.065175]
[1730668127269,0.54141571,69070.0,69069.0,0.065175]
[1730668127566,0.54141571,69070.0,69064.0,0.066179]
[1730668127865,0.12510015,69065.0,69064.0,0.065179]
[1730668128671,0.10352,69065.0,69064.0,0.065179]
[1730668128876,0.36356,69070.0,69067.0,0.065176]
[1730668129078,0.10352,69069.0,69067.0,0.065176]
[1730668130074,0.11152,69069.0,69067.0,0.065176]
[1730668130267,0.10352,69068.0,69067.0,0.065176]
[1730668130575,0.05278772,69068.0,69067.0,0.065176]
[1730668130868,0.05278772,69068.0,69063.0,0.42598]
[1730668131069,0.48590015,69064.0,69063.0,0.06518]
[1730668131475,0.44241292,69064.0,69063.0,0.06518]
[1730668132375,0.44641292,69064.0,69063.0,0.06518]
[1730668132876,0.45141292,69064.0,69063.0,0.06518]
[1730668133972,0.45141292,69064.0,69060.0,0.065183]
[1730668135276,0.44741292,69064.0,69058.0,0.033]
[1730668135577,0.44841292,69064.0,69062.0,0.065181]
[1730668135880,0.44641292,69064.0,69062.0,0.065181]
[1730668136272,0.44241292,69064.0,69062.0,0.065181]
[1730668136463,0.44441292,69064.0,69062.0,0.065181]
[1730668136868,0.44241292,69064.0,69062.0,0.065181]
[1730668137075,0.44741292,69064.0,69062.0,0.065181]
[1730668137872,0.45041292,69064.0,69062.0,0.065181]
[1730668138971,0.45041292,69064.0,69063.0,0.06518]
[1730668139674,0.11156,69064.0,69063.0,0.06518]
[1730668140075,0.008,69064.0,69063.0,0.06518]
[1730668140580,0.003,69064.0,69063.0,0.06518]
[1730668140784,0.005,69064.0,69063.0,0.06518]
[1730668140980,0.009,69064.0,69063.0,0.06518]
[1730668142568,0.009,69064.0,69063.0,0.13604497]
[1730668143168,0.009,69064.0,69063.0,0.23257416]
[1730668143364,0.009,69064.0,69063.0,0.16170919]
[1730668146077,0.3698,69064.0,69063.0,0.16170919]
[1730668146478,0.3698,69064.0,69063.0,0.24731231]
[1730668146989,0.3698,69064.0,69063.0,0.09652919]
[1730668147379,0.3698,69064.0,69063.0,0.16877409]
[1730668147380,0.434979,69064.0,69063.0,0.16877409]
[1730668147684,0.869379,69064.0,69063.0,0.0714175]
[1730668147976,0.869379,69064.0,69062.0,0.0714175]
[1730668148194,0.12510015,69063.0,69061.0,0.0714175]
[1730668148373,0.12510015,69062.0,69061.0,0.0714175]
[1730668148574,0.12510015,69062.0,69061.0,0.1688827]
[1730668148775,0.55950015,69062.0,69061.0,0.16888273]
[1730668149283,0.499581,69062.0,69061.0,0.16888273]
[1730668149589,0.499581,69062.0,69061.0,0.07144895]
[1730668149979,0.503581,69062.0,69061.0,0.07144895]
[1730668150174,0.065182,69061.0,69060.0,0.07144895]
[1730668150496,0.065183,69060.0,69058.0,0.07144895]
[1730668150679,0.22770015,69059.0,69057.0,0.07144895]
[1730668150873,0.48590015,69058.0,69054.0,0.07144895]
[1730668151195,0.48590015,69058.0,69037.0,0.14388395]
[1730668151196,0.425988,69055.0,69053.0,0.07143834]
[1730668151487,0.18790015,69054.0,69052.0,0.07143834]
[1730668151685,0.12510015,69053.0,69049.0,0.07143834]
[1730668151988,0.19029215,69050.0,69046.0,0.07143834]
[1730668152294,0.43092254,69047.0,69043.0,0.07143834]
[1730668152990,0.43092254,69047.0,69044.0,0.16938696]
[1730668153194,0.43092254,69047.0,69029.0,0.08688312]
[1730668153195,0.065205,69037.0,69029.0,0.08688312]
[1730668153374,0.84670015,69030.0,69024.0,0.00124]
[1730668153575,0.12510015,69025.0,69017.0,0.08560312]
[1730668153884,0.7216,69030.0,69021.0,0.3608]
[1730668153885,0.48590015,69030.0,69021.0,0.3608]
[1730668154073,0.48590015,69030.0,69027.0,0.065214]
[1730668154074,0.1026,69029.0,69027.0,0.065214]
[1730668154272,0.1026,69029.0,69028.0,0.095213]
[1730668154490,0.1026,69029.0,69028.0,0.19249001]
[1730668154887,0.3608,69030.0,69029.0,0.065212]
[1730668155079,0.10264,69031.0,69029.0,0.09718887]
[1730668155274,0.10264,69036.0,69028.0,0.03]
[1730668155475,0.10264,69036.0,69029.0,0.09701231]
[1730668155677,0.10264,69036.0,69035.0,0.065207]
[1730668155985,0.004,69030.0,69028.0,0.03]
[1730668156581,0.004,69030.0,69029.0,0.065212]
[1730668157184,0.006,69030.0,69029.0,0.065212]
[1730668157775,0.002,69030.0,69029.0,0.065212]
[1730668158589,0.003,69030.0,69028.0,0.03]
[1730668158782,0.10264,69035.0,69033.0,0.065208]
[1730668158983,0.3608,69041.0,69028.0,0.03]
[1730668159286,0.10264,69040.0,69037.0,0.065205]
[1730668159482,0.3608,69041.0,69033.0,0.3608]
[1730668159677,0.10264,69040.0,69039.0,0.065203]
[1730668160492,0.3608,69041.0,69040.0,0.065202]
[1730668160677,0.46344,69041.0,69040.0,0.065202]
[1730668161383,0.3608,69041.0,69040.0,0.065202]
[1730668161579,0.004,69047.0,69035.0,0.12510015]
[1730668161779,0.10264,69046.0,69040.0,0.3608]
[1730668161994,0.3608,69048.0,69046.0,0.065196]
[1730668162191,0.3608,69048.0,69041.0,0.0304]
[1730668162192,0.10264,69047.0,69041.0,0.0304]
[1730668162587,0.3608,69048.0,69047.0,0.065195]